[Event "*** Titled Tuesday Blitz"]
[Site "Chess.com"]
[Date "2020.02.04"]
[Round "5"]
[White "peixe64"]
[Black "ilya261991"]
[Result "0-1"]
[WhiteElo "2339"]
[BlackElo "2535"]
[TimeControl "180+2"]
[EndTime "14:03:58 PST"]
[Termination "ilya261991 won by resignation"]

1. d4 {[%clk 0:03:01.9]} 1... Nf6 {[%clk 0:02:59.1]} 2. c4 {[%clk 0:03:03.1]}
2... d6 {[%clk 0:03:00.2]} 3. Nc3 {[%clk 0:03:04]} 3... Nbd7 {[%clk 0:03:01.6]}
4. e4 {[%clk 0:03:04.5]} 4... e5 {[%clk 0:03:02.9]} 5. d5 {[%clk 0:03:05.5]}
5... g6 {[%clk 0:03:01.2]} 6. Nf3 {[%clk 0:03:06.9]} 6... Bg7 {[%clk 0:03:02.2]}
7. h3 {[%clk 0:03:08.1]} 7... O-O {[%clk 0:03:03.5]} 8. Be2 {[%clk 0:03:03.7]}
8... Nc5 {[%clk 0:03:03.5]} 9. Qc2 {[%clk 0:03:01]} 9... a5 {[%clk 0:03:01.4]}
10. g4 {[%clk 0:03:00.6]} 10... Nfd7 {[%clk 0:02:55.5]} 11. Rg1 {[%clk
0:02:59.8]} 11... c6 {[%clk 0:02:53.9]} 12. h4 {[%clk 0:02:54.3]} 12... cxd5
{[%clk 0:02:54.3]} 13. cxd5 {[%clk 0:02:49]} 13... Nf6 {[%clk 0:02:49.6]} 14.
Nh2 {[%clk 0:02:35.3]} 14... Bd7 {[%clk 0:02:29.1]} 15. g5 {[%clk 0:02:33.4]}
15... Ne8 {[%clk 0:02:29]} 16. Be3 {[%clk 0:02:30]} 16... b6 {[%clk 0:02:26]}
17. O-O-O {[%clk 0:02:23.7]} 17... Nc7 {[%clk 0:02:26]} 18. h5 {[%clk
0:02:23.1]} 18... N7a6 {[%clk 0:02:26.5]} 19. Kb1 {[%clk 0:02:13.2]} 19... Nb4
{[%clk 0:02:25.6]} 20. Qd2 {[%clk 0:02:14]} 20... a4 {[%clk 0:02:23]} 21. a3
{[%clk 0:02:10.6]} 21... Nb3 {[%clk 0:02:19.2]} 22. Qe1 {[%clk 0:02:10.8]} 22...
Na6 {[%clk 0:02:20.4]} 23. Ng4 {[%clk 0:02:06.7]} 23... b5 {[%clk 0:02:19.4]}
24. Nh6+ {[%clk 0:01:52.5]} 24... Bxh6 {[%clk 0:02:06]} 25. gxh6 {[%clk
0:01:54.4]} 25... b4 {[%clk 0:02:06.2]} 26. axb4 {[%clk 0:01:54.3]} 26... Nxb4
{[%clk 0:02:06.1]} 27. hxg6 {[%clk 0:01:32.4]} 27... fxg6 {[%clk 0:02:02.6]} 28.
Nb5 {[%clk 0:01:09.7]} 28... Bxb5 {[%clk 0:01:46.3]} 29. Bxb5 {[%clk 0:01:11.6]}
29... Qa5 {[%clk 0:01:47]} 30. Bc6 {[%clk 0:00:55.8]} 30... a3 {[%clk 0:01:44]}
31. Rxg6+ {[%clk 0:00:34]} 31... hxg6 {[%clk 0:01:33.9]} 32. h7+ {[%clk
0:00:35.2]} 32... Kh8 {[%clk 0:01:33.8]} 0-1

[Event "*** Titled Tuesday Blitz"]
[Site "Chess.com"]
[Date "2020.02.04"]
[Round "5"]
[White "RestartingChess"]
[Black "volcanoexplorer"]
[Result "0-1"]
[WhiteElo "2347"]
[BlackElo "2601"]
[TimeControl "180+2"]
[EndTime "14:04:00 PST"]
[Termination "volcanoexplorer won by resignation"]

1. e4 {[%clk 0:03:01.9]} 1... e5 {[%clk 0:03:00.8]} 2. Nf3 {[%clk 0:03:03.2]}
2... Nc6 {[%clk 0:03:01.7]} 3. b3 {[%clk 0:03:03.8]} 3... d5 {[%clk 0:03:00.8]}
4. exd5 {[%clk 0:03:04.7]} 4... Qxd5 {[%clk 0:03:02.7]} 5. Bc4 {[%clk
0:03:05.8]} 5... Qe4+ {[%clk 0:02:54.6]} 6. Qe2 {[%clk 0:03:06.2]} 6... Qxe2+
{[%clk 0:02:55.5]} 7. Kxe2 {[%clk 0:03:06.7]} 7... Bg4 {[%clk 0:02:52.7]} 8. h3
{[%clk 0:03:07.2]} 8... Nd4+ {[%clk 0:02:52.2]} 9. Kd3 {[%clk 0:03:05.7]} 9...
Bxf3 {[%clk 0:01:53.2]} 10. gxf3 {[%clk 0:02:57.6]} 10... b5 {[%clk 0:01:54.4]}
11. Bd5 {[%clk 0:02:56.3]} 11... O-O-O {[%clk 0:01:55.4]} 12. c4 {[%clk
0:02:56.6]} 12... c6 {[%clk 0:01:56.2]} 13. Bxf7 {[%clk 0:02:49.1]} 13... Nxb3+
{[%clk 0:01:52.9]} 14. Kc3 {[%clk 0:02:47.1]} 14... Nxa1 {[%clk 0:01:52.7]} 15.
cxb5 {[%clk 0:02:47.8]} 15... Bc5 {[%clk 0:01:31.7]} 16. Kb2 {[%clk 0:02:46.9]}
16... Bxf2 {[%clk 0:01:30.4]} 17. bxc6 {[%clk 0:02:44.4]} 17... Bd4+ {[%clk
0:01:28]} 18. Nc3 {[%clk 0:02:36.4]} 18... Nh6 {[%clk 0:01:24.2]} 19. Be6+
{[%clk 0:02:30]} 19... Kc7 {[%clk 0:01:25.1]} 20. Kxa1 {[%clk 0:02:29.2]} 20...
Kxc6 {[%clk 0:01:24.7]} 21. Bb2 {[%clk 0:02:25.6]} 21... Rhe8 {[%clk 0:01:19.9]}
22. Bb3 {[%clk 0:02:22]} 22... Rf8 {[%clk 0:01:13.8]} 23. Ba4+ {[%clk
0:02:08.3]} 23... Kb7 {[%clk 0:01:14.6]} 24. Bb3 {[%clk 0:02:04.6]} 24... Nf5
{[%clk 0:00:54]} 25. Ne4 {[%clk 0:02:02.2]} 25... Bxb2+ {[%clk 0:00:53.8]} 26.
Kxb2 {[%clk 0:02:02.5]} 26... Kb6 {[%clk 0:00:54.5]} 27. Rg1 {[%clk 0:01:54.5]}
27... g6 {[%clk 0:00:52.4]} 28. Kc3 {[%clk 0:01:36.9]} 28... Nd4 {[%clk
0:00:52]} 29. Bc4 {[%clk 0:00:59.1]} 29... Rxf3+ {[%clk 0:00:51.2]} 30. d3
{[%clk 0:01:00.3]} 30... Ne2+ {[%clk 0:00:52.1]} 0-1

[Event "*** Titled Tuesday Blitz"]
[Site "Chess.com"]
[Date "2020.02.04"]
[Round "5"]
[White "AdrianaNikolova"]
[Black "politeplayer"]
[Result "1-0"]
[WhiteElo "2380"]
[BlackElo "2144"]
[TimeControl "180+2"]
[EndTime "14:04:00 PST"]
[Termination "AdrianaNikolova won on time"]

1. d4 {[%clk 0:03:01.9]} 1... d5 {[%clk 0:02:57.9]} 2. Bf4 {[%clk 0:03:02.4]}
2... Nf6 {[%clk 0:02:54.8]} 3. e3 {[%clk 0:03:02.5]} 3... e6 {[%clk 0:02:55.8]}
4. Nf3 {[%clk 0:03:03.6]} 4... Bd6 {[%clk 0:02:55.2]} 5. Ne5 {[%clk 0:03:04.7]}
5... O-O {[%clk 0:02:55.3]} 6. Nd2 {[%clk 0:03:05.1]} 6... c5 {[%clk 0:02:50.1]}
7. c3 {[%clk 0:03:06.1]} 7... b6 {[%clk 0:02:45.9]} 8. Bd3 {[%clk 0:03:03.8]}
8... Bb7 {[%clk 0:02:45.5]} 9. Qf3 {[%clk 0:03:04.8]} 9... Nc6 {[%clk
0:02:19.7]} 10. Qh3 {[%clk 0:03:03]} 10... Ne7 {[%clk 0:01:58]} 11. Ndf3 {[%clk
0:02:07.5]} 11... Ng6 {[%clk 0:01:56.3]} 12. Ng5 {[%clk 0:02:07.4]} 12... cxd4
{[%clk 0:01:03.9]} 13. Bxg6 {[%clk 0:01:58.3]} 13... hxg6 {[%clk 0:00:44.7]} 14.
exd4 {[%clk 0:01:51.5]} 14... Nh5 {[%clk 0:00:37.7]} 15. Be3 {[%clk 0:01:44.6]}
15... Bxe5 {[%clk 0:00:23.3]} 16. dxe5 {[%clk 0:01:45]} 16... Qe7 {[%clk
0:00:14.5]} 17. g4 {[%clk 0:01:43.8]} 17... d4 {[%clk 0:00:15.7]} 18. cxd4
{[%clk 0:01:29.7]} 18... Qb4+ {[%clk 0:00:08.8]} 19. Kf1 {[%clk 0:01:16.6]}
19... Bxh1 {[%clk 0:00:05.1]} 20. gxh5 {[%clk 0:01:17.5]} 20... Qc4+ {[%clk
0:00:04.2]} 21. Kg1 {[%clk 0:01:16.8]} 1-0

[Event "*** Titled Tuesday Blitz"]
[Site "Chess.com"]
[Date "2020.02.04"]
[Round "5"]
[White "dragos420"]
[Black "GMKrikor"]
[Result "0-1"]
[WhiteElo "2484"]
[BlackElo "2795"]
[TimeControl "180+2"]
[EndTime "14:04:03 PST"]
[Termination "GMKrikor won by resignation"]

1. e4 {[%clk 0:03:01.9]} 1... c5 {[%clk 0:03:01]} 2. Nf3 {[%clk 0:03:02.1]} 2...
g6 {[%clk 0:03:01.6]} 3. c3 {[%clk 0:03:02.5]} 3... d5 {[%clk 0:03:02.4]} 4.
exd5 {[%clk 0:03:02.6]} 4... Qxd5 {[%clk 0:03:04.3]} 5. d4 {[%clk 0:03:04.5]}
5... Bg7 {[%clk 0:03:05.6]} 6. Be3 {[%clk 0:03:05.2]} 6... cxd4 {[%clk
0:03:04.2]} 7. cxd4 {[%clk 0:03:07.1]} 7... Nf6 {[%clk 0:03:05.1]} 8. Nc3 {[%clk
0:03:08.7]} 8... Qd6 {[%clk 0:03:06.6]} 9. Bd3 {[%clk 0:03:07.5]} 9... O-O
{[%clk 0:03:07.8]} 10. O-O {[%clk 0:03:09.1]} 10... Nc6 {[%clk 0:03:09.5]} 11.
a3 {[%clk 0:03:09.9]} 11... Bg4 {[%clk 0:02:56.9]} 12. Be2 {[%clk 0:02:14]}
12... Rfd8 {[%clk 0:02:54.8]} 13. h3 {[%clk 0:02:12.1]} 13... Bxf3 {[%clk
0:02:35.1]} 14. Bxf3 {[%clk 0:02:14]} 14... Nxd4 {[%clk 0:02:36.7]} 15. Bxd4
{[%clk 0:01:41.4]} 15... Qxd4 {[%clk 0:02:37.3]} 16. Qb3 {[%clk 0:01:43]} 16...
Qf4 {[%clk 0:01:28.8]} 17. Rad1 {[%clk 0:01:38.1]} 17... Rxd1 {[%clk 0:01:24.4]}
18. Rxd1 {[%clk 0:01:40]} 18... Rb8 {[%clk 0:01:26]} 19. Qb5 {[%clk 0:01:18.9]}
19... a6 {[%clk 0:01:20.5]} 20. Qc5 {[%clk 0:01:11.9]} 20... Bf8 {[%clk
0:01:10.2]} 21. Qa7 {[%clk 0:00:59.3]} 21... e6 {[%clk 0:01:01.7]} 22. g3 {[%clk
0:00:35.6]} 22... Qc7 {[%clk 0:00:58.4]} 23. Kg2 {[%clk 0:00:32.6]} 23... Bc5
{[%clk 0:00:58.1]} 0-1

[Event "*** Titled Tuesday Blitz"]
[Site "Chess.com"]
[Date "2020.02.04"]
[Round "5"]
[White "cmpassgall"]
[Black "Firouzja2003"]
[Result "1/2-1/2"]
[WhiteElo "2581"]
[BlackElo "3143"]
[TimeControl "180+2"]
[EndTime "14:04:05 PST"]
[Termination "Game drawn by agreement"]

1. Nf3 {[%clk 0:03:01.3]} 1... d6 {[%clk 0:02:59.8]} 2. d4 {[%clk 0:03:02.4]}
2... Nf6 {[%clk 0:03:00.7]} 3. Nc3 {[%clk 0:03:03.4]} 3... g6 {[%clk 0:02:55.2]}
4. e4 {[%clk 0:03:04.4]} 4... Bg7 {[%clk 0:02:57.1]} 5. Bc4 {[%clk 0:02:54.1]}
5... O-O {[%clk 0:02:58.5]} 6. Qe2 {[%clk 0:02:52]} 6... Nc6 {[%clk 0:02:59.7]}
7. e5 {[%clk 0:02:47]} 7... Nh5 {[%clk 0:03:00.1]} 8. h3 {[%clk 0:02:39.8]} 8...
dxe5 {[%clk 0:03:00.4]} 9. dxe5 {[%clk 0:02:41.5]} 9... Nd4 {[%clk 0:03:00]} 10.
Nxd4 {[%clk 0:02:41.1]} 10... Qxd4 {[%clk 0:03:01.9]} 11. g4 {[%clk 0:02:37.6]}
11... Nf4 {[%clk 0:03:02.5]} 12. Bxf4 {[%clk 0:02:37]} 12... Qxf4 {[%clk
0:03:04.4]} 13. Nd5 {[%clk 0:02:38]} 13... Qg5 {[%clk 0:02:48.8]} 14. f4 {[%clk
0:02:35.9]} 14... Qh4+ {[%clk 0:02:43.1]} 15. Qf2 {[%clk 0:02:36.9]} 15... Qxf2+
{[%clk 0:02:43.5]} 16. Kxf2 {[%clk 0:02:38.8]} 16... Be6 {[%clk 0:02:41.3]} 17.
Rad1 {[%clk 0:02:38.3]} 17... Bxd5 {[%clk 0:02:38.8]} 18. Bxd5 {[%clk
0:02:38.3]} 18... g5 {[%clk 0:02:29.7]} 19. e6 {[%clk 0:02:16.5]} 19... fxe6
{[%clk 0:02:11.5]} 20. Bxe6+ {[%clk 0:02:18.4]} 20... Kh8 {[%clk 0:02:13.4]} 21.
f5 {[%clk 0:02:19]} 21... Bxb2 {[%clk 0:02:13.1]} 22. Rd7 {[%clk 0:02:19.5]}
22... Ba3 {[%clk 0:01:49.4]} 23. Rxc7 {[%clk 0:02:15.9]} 23... b6 {[%clk
0:01:50.7]} 24. Rd1 {[%clk 0:02:13.4]} 24... Kg7 {[%clk 0:01:51.7]} 25. Rdd7
{[%clk 0:02:10.3]} 25... Kf6 {[%clk 0:01:51]} 26. Rxa7 {[%clk 0:02:08.2]} 26...
Bc5+ {[%clk 0:01:47.7]} 27. Kf3 {[%clk 0:02:06.6]} 27... Rxa7 {[%clk 0:01:47.8]}
28. Rxa7 {[%clk 0:02:08.5]} 28... Rh8 {[%clk 0:01:47.7]} 29. a4 {[%clk
0:01:48.4]} 29... h5 {[%clk 0:01:47.6]} 30. a5 {[%clk 0:01:38.4]} 30... hxg4+
{[%clk 0:01:47.1]} 31. hxg4 {[%clk 0:01:36.7]} 31... bxa5 {[%clk 0:01:43.3]} 32.
Rxa5 {[%clk 0:01:35.9]} 32... Rh3+ {[%clk 0:01:43.7]} 33. Kg2 {[%clk 0:01:34.3]}
33... Rc3 {[%clk 0:01:44.5]} 34. Bb3 {[%clk 0:01:29.4]} 34... Bd6 {[%clk
0:01:45.6]} 35. Ra4 {[%clk 0:01:28]} 35... Re3 {[%clk 0:01:36.2]} 36. Kf2 {[%clk
0:01:17.2]} 36... Re5 {[%clk 0:01:37.3]} 37. Kf3 {[%clk 0:01:13.8]} 37... Re1
{[%clk 0:01:34.8]} 38. Re4 {[%clk 0:01:12.3]} 38... Rf1+ {[%clk 0:01:33.4]}
1/2-1/2

[Event "*** Titled Tuesday Blitz"]
[Site "Chess.com"]
[Date "2020.02.04"]
[Round "5"]
[White "davigator"]
[Black "allvim"]
[Result "0-1"]
[WhiteElo "2258"]
[BlackElo "2417"]
[TimeControl "180+2"]
[EndTime "14:04:08 PST"]
[Termination "allvim won by checkmate"]

1. e4 {[%clk 0:03:01.9]} 1... e6 {[%clk 0:03:00.9]} 2. d4 {[%clk 0:03:02.3]}
2... d5 {[%clk 0:03:02.3]} 3. Nc3 {[%clk 0:03:02.1]} 3... Nf6 {[%clk 0:03:03.7]}
4. e5 {[%clk 0:03:02.7]} 4... Nfd7 {[%clk 0:03:05]} 5. f4 {[%clk 0:03:03.8]}
5... c5 {[%clk 0:03:06.5]} 6. Nf3 {[%clk 0:03:05.6]} 6... Nc6 {[%clk 0:03:08]}
7. Be3 {[%clk 0:03:07.1]} 7... Qb6 {[%clk 0:03:09.5]} 8. a3 {[%clk 0:03:07.6]}
8... a6 {[%clk 0:03:10.5]} 9. Be2 {[%clk 0:03:07.9]} 9... Be7 {[%clk 0:03:04.7]}
10. h4 {[%clk 0:03:04.7]} 10... O-O {[%clk 0:03:04.1]} 11. h5 {[%clk 0:03:05.3]}
11... h6 {[%clk 0:03:03.6]} 12. Rh3 {[%clk 0:03:02.8]} 12... f6 {[%clk
0:03:04.3]} 13. Na4 {[%clk 0:02:57.2]} 13... Qa5+ {[%clk 0:03:02.2]} 14. c3
{[%clk 0:02:58.4]} 14... cxd4 {[%clk 0:03:00.7]} 15. Nxd4 {[%clk 0:02:57.8]}
15... Nxd4 {[%clk 0:03:00.9]} 16. Bxd4 {[%clk 0:02:58.5]} 16... b5 {[%clk
0:03:01]} 17. exf6 {[%clk 0:02:56.7]} 17... Bxf6 {[%clk 0:02:50.6]} 18. Nc5
{[%clk 0:02:53.9]} 18... e5 {[%clk 0:02:24]} 19. Nxd7 {[%clk 0:02:49.5]} 19...
Bxd7 {[%clk 0:02:23.8]} 20. fxe5 {[%clk 0:02:50.2]} 20... Bxh3 {[%clk
0:02:24.6]} 21. exf6 {[%clk 0:02:50.7]} 21... Bxg2 {[%clk 0:02:15.6]} 22. Qd2
{[%clk 0:02:47.5]} 22... Qa4 {[%clk 0:01:58.7]} 23. Qf4 {[%clk 0:02:45.3]} 23...
Rae8 {[%clk 0:01:54.6]} 24. Qg3 {[%clk 0:02:43.1]} 24... Rxe2+ {[%clk
0:01:45.2]} 25. Kxe2 {[%clk 0:02:43.8]} 25... Qc2+ {[%clk 0:01:46.5]} 26. Ke1
{[%clk 0:02:42.5]} 26... Re8+ {[%clk 0:01:41.5]} 27. Be5 {[%clk 0:02:43.3]}
27... g5 {[%clk 0:01:14.6]} 28. hxg6 {[%clk 0:02:38.7]} 28... Qe4+ {[%clk
0:01:15.3]} 29. Kf2 {[%clk 0:02:39]} 29... Rxe5 {[%clk 0:01:16.5]} 30. f7+
{[%clk 0:02:39.4]} 30... Kg7 {[%clk 0:01:17.3]} 31. Qxg2 {[%clk 0:02:37.6]}
31... Qe2+ {[%clk 0:01:12.7]} 32. Kg1 {[%clk 0:02:38.1]} 32... Rg5 {[%clk
0:01:14.1]} 33. Qxg5 {[%clk 0:02:38.4]} 33... hxg5 {[%clk 0:01:14.9]} 34. Rf1
{[%clk 0:02:39.7]} 34... Qg4+ {[%clk 0:01:02.9]} 35. Kh1 {[%clk 0:02:38.7]}
35... Qh3+ {[%clk 0:01:03.7]} 36. Kg1 {[%clk 0:02:39.7]} 36... Qc8 {[%clk
0:00:44.6]} 37. Kg2 {[%clk 0:02:34.8]} 37... Qf8 {[%clk 0:00:45.6]} 38. Rf5
{[%clk 0:02:32.7]} 38... Kxg6 {[%clk 0:00:46.7]} 39. Rf2 {[%clk 0:02:31.6]}
39... Qxf7 {[%clk 0:00:45.3]} 40. Rxf7 {[%clk 0:02:31.9]} 40... Kxf7 {[%clk
0:00:46.8]} 41. b3 {[%clk 0:02:33]} 41... Kf6 {[%clk 0:00:47.5]} 42. Kf3 {[%clk
0:02:34.2]} 42... Kf5 {[%clk 0:00:47.6]} 43. Kg3 {[%clk 0:02:32.4]} 43... Ke4
{[%clk 0:00:48.4]} 44. Kg4 {[%clk 0:02:31.9]} 44... Kd3 {[%clk 0:00:49.7]} 45.
c4 {[%clk 0:02:31.5]} 45... dxc4 {[%clk 0:00:50.9]} 46. bxc4 {[%clk 0:02:32.7]}
46... bxc4 {[%clk 0:00:52.4]} 47. Kxg5 {[%clk 0:02:31.8]} 47... c3 {[%clk
0:00:53.8]} 48. a4 {[%clk 0:02:33.7]} 48... c2 {[%clk 0:00:55.1]} 49. a5 {[%clk
0:02:35.6]} 49... c1=Q+ {[%clk 0:00:56.6]} 50. Kf5 {[%clk 0:02:36.2]} 50... Qc5+
{[%clk 0:00:56.6]} 51. Ke6 {[%clk 0:02:36.8]} 51... Qxa5 {[%clk 0:00:57.8]} 52.
Kd6 {[%clk 0:02:38.7]} 52... Qb5 {[%clk 0:00:59.1]} 53. Kc7 {[%clk 0:02:39]}
53... a5 {[%clk 0:01:01]} 54. Kc8 {[%clk 0:02:39.5]} 54... a4 {[%clk 0:01:02.4]}
55. Kc7 {[%clk 0:02:41.4]} 55... a3 {[%clk 0:01:03.7]} 56. Kc8 {[%clk
0:02:43.3]} 56... a2 {[%clk 0:01:05.1]} 57. Kc7 {[%clk 0:02:45.2]} 57... a1=Q
{[%clk 0:01:06.1]} 58. Kc8 {[%clk 0:02:47.1]} 58... Qc6+ {[%clk 0:01:04.9]} 59.
Kb8 {[%clk 0:02:47]} 59... Qaa8# {[%clk 0:01:05.4]} 0-1

[Event "*** Titled Tuesday Blitz"]
[Site "Chess.com"]
[Date "2020.02.04"]
[Round "5"]
[White "Teidi96"]
[Black "SoltaniciR"]
[Result "1-0"]
[WhiteElo "2309"]
[BlackElo "2465"]
[TimeControl "180+2"]
[EndTime "14:04:10 PST"]
[Termination "Teidi96 won by resignation"]

1. e4 {[%clk 0:03:01.9]} 1... c5 {[%clk 0:03:00.5]} 2. Nf3 {[%clk 0:03:02.2]}
2... d6 {[%clk 0:03:01.5]} 3. Bb5+ {[%clk 0:03:02.1]} 3... Nd7 {[%clk
0:03:01.9]} 4. d4 {[%clk 0:03:02]} 4... cxd4 {[%clk 0:02:59.4]} 5. Qxd4 {[%clk
0:03:02.7]} 5... a6 {[%clk 0:02:59.8]} 6. Bxd7+ {[%clk 0:03:03.3]} 6... Bxd7
{[%clk 0:03:00.9]} 7. c4 {[%clk 0:03:01.6]} 7... e5 {[%clk 0:02:56.1]} 8. Qd3
{[%clk 0:03:01.8]} 8... b5 {[%clk 0:02:56.9]} 9. Nc3 {[%clk 0:03:00.2]} 9... Qb6
{[%clk 0:02:50.9]} 10. O-O {[%clk 0:02:51.7]} 10... h6 {[%clk 0:02:50.7]} 11.
Nd5 {[%clk 0:02:44.9]} 11... Qb7 {[%clk 0:02:51.4]} 12. b3 {[%clk 0:02:40.4]}
12... Ne7 {[%clk 0:02:45.8]} 13. Ba3 {[%clk 0:02:22.7]} 13... Nxd5 {[%clk
0:02:44.2]} 14. exd5 {[%clk 0:02:23.8]} 14... Be7 {[%clk 0:02:30.3]} 15. c5
{[%clk 0:02:24]} 15... dxc5 {[%clk 0:02:27.9]} 16. Nxe5 {[%clk 0:02:23.9]} 16...
O-O {[%clk 0:02:18.1]} 17. d6 {[%clk 0:02:20.2]} 17... Bf6 {[%clk 0:02:18]} 18.
Rfe1 {[%clk 0:02:15.1]} 18... Rfe8 {[%clk 0:01:13.1]} 19. f4 {[%clk 0:02:14]}
19... b4 {[%clk 0:00:24.2]} 20. Bb2 {[%clk 0:02:14.4]} 20... Bb5 {[%clk
0:00:25.1]} 21. Qg3 {[%clk 0:01:55.6]} 21... Red8 {[%clk 0:00:21.5]} 22. Rad1
{[%clk 0:01:52.4]} 22... Qb6 {[%clk 0:00:22.5]} 23. Nd7 {[%clk 0:01:28]} 23...
Rxd7 {[%clk 0:00:20]} 24. Bxf6 {[%clk 0:01:28.3]} 24... g6 {[%clk 0:00:21.3]}
25. f5 {[%clk 0:01:25.9]} 25... c4+ {[%clk 0:00:20.4]} 26. Kh1 {[%clk
0:01:26.6]} 26... g5 {[%clk 0:00:14.6]} 27. h4 {[%clk 0:01:22]} 1-0

[Event "*** Titled Tuesday Blitz"]
[Site "Chess.com"]
[Date "2020.02.04"]
[Round "5"]
[White "Perecke"]
[Black "lelya96"]
[Result "0-1"]
[WhiteElo "2275"]
[BlackElo "2466"]
[TimeControl "180+2"]
[EndTime "14:04:13 PST"]
[Termination "lelya96 won by resignation"]

1. e4 {[%clk 0:03:01.9]} 1... e5 {[%clk 0:03:00.1]} 2. Nf3 {[%clk 0:02:58.1]}
2... Nc6 {[%clk 0:02:59.5]} 3. d4 {[%clk 0:02:59.1]} 3... exd4 {[%clk
0:02:59.2]} 4. Bc4 {[%clk 0:03:00.4]} 4... Nf6 {[%clk 0:02:50.8]} 5. O-O {[%clk
0:02:59.3]} 5... Nxe4 {[%clk 0:02:44.9]} 6. Re1 {[%clk 0:02:39.9]} 6... d5
{[%clk 0:02:45]} 7. Bxd5 {[%clk 0:02:40.7]} 7... Qxd5 {[%clk 0:02:44.6]} 8. Nc3
{[%clk 0:02:41.8]} 8... Qd8 {[%clk 0:02:24.1]} 9. Nxe4 {[%clk 0:02:42.4]} 9...
Be7 {[%clk 0:02:24.8]} 10. Neg5 {[%clk 0:02:04.3]} 10... O-O {[%clk 0:02:20.3]}
11. Qd3 {[%clk 0:02:04.7]} 11... g6 {[%clk 0:02:13.5]} 12. Ne4 {[%clk
0:01:59.9]} 12... Bf5 {[%clk 0:02:11.7]} 13. Bh6 {[%clk 0:01:57.3]} 13... Re8
{[%clk 0:02:06.6]} 14. Rad1 {[%clk 0:01:57.7]} 14... Bf6 {[%clk 0:01:26.8]} 15.
Nxf6+ {[%clk 0:01:50.6]} 15... Qxf6 {[%clk 0:01:27.7]} 16. Qb3 {[%clk 0:01:51]}
16... b6 {[%clk 0:01:18.3]} 17. Bg5 {[%clk 0:01:29.5]} 17... Qg7 {[%clk
0:01:18.6]} 18. Rxe8+ {[%clk 0:01:24.4]} 18... Rxe8 {[%clk 0:01:18.5]} 19. Qd5
{[%clk 0:01:25.8]} 19... Be4 {[%clk 0:01:02.3]} 20. Qd7 {[%clk 0:01:04]} 20...
Rf8 {[%clk 0:00:34.7]} 21. Be7 {[%clk 0:00:50.1]} 21... Nxe7 {[%clk 0:00:33.3]}
22. Qxe7 {[%clk 0:00:50.6]} 22... Bxf3 {[%clk 0:00:30.4]} 23. gxf3 {[%clk
0:00:52.5]} 23... c5 {[%clk 0:00:30.9]} 24. Qxa7 {[%clk 0:00:52.9]} 24... Qf6
{[%clk 0:00:31.5]} 25. Qxb6 {[%clk 0:00:48.4]} 25... Qxb6 {[%clk 0:00:31.9]} 0-1

[Event "*** Titled Tuesday Blitz"]
[Site "Chess.com"]
[Date "2020.02.04"]
[Round "5"]
[White "DonPreuss"]
[Black "Jahonas"]
[Result "0-1"]
[WhiteElo "2215"]
[BlackElo "2403"]
[TimeControl "180+2"]
[EndTime "14:04:16 PST"]
[Termination "Jahonas won by resignation"]

1. d4 {[%clk 0:03:01.9]} 1... Nf6 {[%clk 0:03:00.1]} 2. Nc3 {[%clk 0:03:02.2]}
2... e6 {[%clk 0:03:01.3]} 3. e4 {[%clk 0:03:03.2]} 3... Bb4 {[%clk 0:03:01.6]}
4. e5 {[%clk 0:03:03.9]} 4... Nd5 {[%clk 0:03:02]} 5. Bd2 {[%clk 0:03:05]} 5...
Nxc3 {[%clk 0:03:02.6]} 6. bxc3 {[%clk 0:03:06.9]} 6... Be7 {[%clk 0:03:03.6]}
7. Bd3 {[%clk 0:03:07.4]} 7... d6 {[%clk 0:03:04.1]} 8. f4 {[%clk 0:03:08.3]}
8... g6 {[%clk 0:03:02.7]} 9. Nf3 {[%clk 0:03:08.7]} 9... Bd7 {[%clk 0:03:00.6]}
10. O-O {[%clk 0:03:09.3]} 10... Bc6 {[%clk 0:03:01.5]} 11. Qe1 {[%clk
0:02:56.5]} 11... Nd7 {[%clk 0:02:58.6]} 12. c4 {[%clk 0:02:41.7]} 12... d5
{[%clk 0:02:56]} 13. cxd5 {[%clk 0:02:37.3]} 13... Bxd5 {[%clk 0:02:54.2]} 14.
c4 {[%clk 0:02:37.6]} 14... Bxf3 {[%clk 0:02:55]} 15. Rxf3 {[%clk 0:02:38.1]}
15... Nb6 {[%clk 0:02:48.4]} 16. Be3 {[%clk 0:01:48]} 16... c5 {[%clk
0:02:42.2]} 17. dxc5 {[%clk 0:01:29.9]} 17... Qxd3 {[%clk 0:02:39.6]} 18. cxb6
{[%clk 0:01:30.5]} 18... axb6 {[%clk 0:02:37.6]} 19. Bxb6 {[%clk 0:01:14.8]}
19... Qxc4 {[%clk 0:02:32.9]} 20. Rb3 {[%clk 0:01:05.1]} 20... O-O {[%clk
0:02:23.9]} 21. Kh1 {[%clk 0:00:57.6]} 21... Rxa2 {[%clk 0:02:18.4]} 22. Rc3
{[%clk 0:00:34.8]} 22... Rxa1 {[%clk 0:02:08.8]} 23. Qxa1 {[%clk 0:00:35.6]}
23... Qxf4 {[%clk 0:02:07.8]} 24. Rf3 {[%clk 0:00:31.9]} 24... Qb4 {[%clk
0:01:40.9]} 25. Be3 {[%clk 0:00:32.2]} 25... Rd8 {[%clk 0:01:17.9]} 26. Qf1
{[%clk 0:00:28]} 26... Qa4 {[%clk 0:01:07.7]} 27. Qe2 {[%clk 0:00:15.2]} 27...
Qd1+ {[%clk 0:01:05.6]} 28. Qxd1 {[%clk 0:00:15.9]} 28... Rxd1+ {[%clk
0:01:07.5]} 0-1